fUSD/lending_fUSD_20260608
["ID","MTS","AMOUNT","RATE_DAILY","PERIOD"]
[424436636,1780891832000,-31.25025044,0.000115,2]
[424436640,1780891832000,-151.0,0.00012,2]
[424436645,1780891832000,-81.71240491,0.0001228,2]
[424436643,1780891832000,-250.0,0.00012056,2]
[424436641,1780891832000,-151.0,0.00012,2]
[424436644,1780891832000,-329.29065994,0.00012056,2]
[424436638,1780891832000,-215.86427702,0.00011928,2]
[424436635,1780891832000,-125.89974956,0.000115,2]
[424436639,1780891832000,-151.0,0.00012,2]
[424436658,1780891832000,-180.94,0.00012915,2]
[424436662,1780891832000,-192.49936712,0.00013342,2]
[424436659,1780891832000,-150.0,0.0001293,2]
[424436661,1780891832000,-255.21,0.00013137,2]
[424436653,1780891832000,-500.0,0.00012466,2]
[424436660,1780891832000,-581.94990854,0.0001296,2]
[424436657,1780891832000,-255.21,0.00012824,2]
[424436655,1780891832000,-255.21,0.00012511,2]
[424436651,1780891832000,-162.86,0.00012406,2]
[424436649,1780891832000,-543.16000493,0.0001238,2]
[424436648,1780891832000,-204.17999507,0.0001238,2]
[424436647,1780891832000,-324.0286137,0.0001228,2]
[424436642,1780891832000,-151.0,0.00012,2]
[424436656,1780891832000,-179.1,0.00012697,2]
[424436646,1780891832000,-424.63898139,0.0001228,2]
[424436684,1780891840000,-26736.57443359,0.00013499,2]
[424436682,1780891840000,-255.21,0.0001345,2]
[424436683,1780891840000,-150.0,0.00013498,2]
[424436681,1780891840000,-307.50063288,0.00013342,2]
[424436689,1780891843000,-1175.97776117,0.00013499,2]
[424436690,1780891843000,-236.14364311,0.00013499,2]
[424436698,1780891847000,-653.81522287,0.00013499,2]
[424436700,1780891847000,-1091.55639,0.00013499,2]
[424436699,1780891847000,-1285.8807777,0.00013499,2]
[424436701,1780891985000,150.0,0.0003013,120]
[424436705,1780892154000,165.72,0.00029167,120]
[424436707,1780892269000,1513.18,0.00030137,120]
[424436733,1780892558000,419.0,0.00030137,120]
[424436741,1780892689000,10000.0,0.00027397,120]
[424436754,1780893031000,500.0,0.0003013,120]
[424436770,1780893032000,-179.66191605,0.00012557,2]
[424436769,1780893032000,-165.72,0.00012523,2]
[424436761,1780893032000,-150.0,0.00012138,2]
[424436767,1780893032000,-3392.08206105,0.00012523,9]
[424436768,1780893032000,-479.07378065,0.00012523,9]
[424436766,1780893032000,-259.92,0.00012375,2]
[424436765,1780893032000,-180.94,0.00012357,2]
[424436760,1780893032000,-151.0,0.00012,2]
[424436762,1780893032000,-597.87,0.00012287,2]
[424436763,1780893032000,-396.76616296,0.00012352,2]
[424436759,1780893032000,-151.0,0.00012,2]
[424436758,1780893032000,-102.4700025,0.00012,2]
[424436756,1780893032000,-151.0,0.00012,2]
[424436755,1780893032000,-152.0,0.00010789,7]
[424436771,1780893032000,-235.52808395,0.00012557,2]
[424436764,1780893032000,-339.48176202,0.00012352,2]
[424436772,1780893032000,-181.64888321,0.00012575,2]
[424436757,1780893032000,-48.5299975,0.00012,2]
[424436775,1780893032000,-600.0,0.000128,4]
[424436774,1780893032000,-300.0,0.000127,4]
[424436787,1780893032000,-6226.43661,0.00012952,2]
[424436786,1780893032000,-327.86973261,0.00012952,2]
[424436788,1780893032000,-603.84235597,0.00012952,2]
[424436791,1780893032000,-15788.63298275,0.00012952,2]
[424436785,1780893032000,-1447.85461755,0.00012952,2]
[424436784,1780893032000,-10490.42425741,0.00012952,2]
[424436773,1780893032000,-259.92,0.00012684,2]
[424436790,1780893032000,-7474.50282015,0.00012952,2]
[424436781,1780893032000,-593170.97634647,0.00012952,2]
[424436780,1780893032000,-150.0,0.00012951,2]
[424436776,1780893032000,-900.0,0.000129,4]
[424436779,1780893032000,-735.54509119,0.00012942,2]
[424436783,1780893032000,-3560.41396609,0.00012952,2]
[424436778,1780893032000,-2000.0,0.000129,2]
[424436782,1780893032000,-52449.42334233,0.00012952,2]
[424436777,1780893032000,-250.0,0.000129,2]
[424436808,1780893038000,-500.0,0.00013151,2]
[424436806,1780893038000,-2500.0,0.00013052,2]
[424436805,1780893038000,-24962.7607,0.00013052,2]
[424436802,1780893038000,-32914.711029,0.00013052,2]
[424436804,1780893038000,-32309.6454,0.00013052,2]
[424436803,1780893038000,-234.67563738,0.00013052,2]
[424436799,1780893038000,-953.19734941,0.00013,5]
[424436796,1780893038000,-1644271.83521867,0.00012952,2]
[424436819,1780893038000,-500.0,0.00013151,2]
[424436807,1780893038000,-500.0,0.00013151,2]
[424436797,1780893038000,-1500000.0,0.00012952,2]
[424436795,1780893038000,-1576.94745,0.00012952,2]
[424436798,1780893038000,-259.92,0.00012994,2]
[424436809,1780893038000,-500.0,0.00013151,2]
[424436800,1780893038000,-180.60942112,0.00013051,2]
[424436811,1780893038000,-500.0,0.00013151,2]
[424436820,1780893038000,-500.0,0.00013151,2]
[424436828,1780893038000,-500.0,0.00013151,2]
[424436821,1780893038000,-500.0,0.00013151,2]
[424436824,1780893038000,-500.0,0.00013151,2]
[424436826,1780893038000,-500.0,0.00013151,2]
[424436822,1780893038000,-500.0,0.00013151,2]
[424436815,1780893038000,-500.0,0.00013151,2]
[424436801,1780893038000,-9311.72333955,0.00013052,2]
[424436818,1780893038000,-500.0,0.00013151,2]
[424436813,1780893038000,-500.0,0.00013151,2]
[424436812,1780893038000,-500.0,0.00013151,2]
[424436814,1780893038000,-500.0,0.00013151,2]
[424436816,1780893038000,-179.08126882,0.00013151,2]
[424436810,1780893038000,-500.0,0.00013151,2]
[424436817,1780893038000,-500.0,0.00013151,2]
[424436901,1780893039000,-500.0,0.00013398,2]
[424436916,1780893039000,-500.0,0.00013398,2]
[424436903,1780893039000,-335.04442169,0.00013398,2]
[424436905,1780893039000,-355.2053864,0.00013398,2]
[424436914,1780893039000,-250.0,0.00013398,2]
[424436899,1780893039000,-463.32071073,0.00013398,2]
[424436912,1780893039000,-500.0,0.00013398,2]
[424436911,1780893039000,-498.64166166,0.00013398,2]
[424436897,1780893039000,-500.0,0.00013398,2]
[424436908,1780893039000,-500.0,0.00013398,2]
[424436895,1780893039000,-386.12546463,0.00013398,2]
[424436893,1780893039000,-735.54509119,0.00013389,2]
[424436906,1780893039000,-500.0,0.00013398,2]
[424436920,1780893039000,-500.0,0.00013398,2]
[424436935,1780893039000,-32914.71102892,0.00013463,2]
[424436918,1780893039000,-500.0,0.00013398,2]
[424436929,1780893039000,-500.0,0.00013398,2]
[424436934,1780893039000,-9311.72333953,0.00013463,2]
[424436926,1780893039000,-500.0,0.00013398,2]
[424436939,1780893039000,-150.0,0.00013488,2]
[424436940,1780893039000,-150.53336307,0.00013488,2]
[424436932,1780893039000,-500.0,0.00013425,2]
[424436937,1780893039000,-224.57091147,0.00013488,2]
[424436924,1780893039000,-500.0,0.00013398,2]
[424436938,1780893039000,-150.0,0.00013488,2]
[424436936,1780893039000,-238.47314681,0.00013488,2]
[424436931,1780893039000,-500.0,0.00013398,2]
[424436881,1780893039000,-215.86427702,0.00013219,2]
[424436922,1780893039000,-500.0,0.00013398,2]
[424436951,1780893039000,-259.92,0.00013613,2]
[424436843,1780893039000,-500.0,0.00013151,2]
[424436879,1780893039000,-160.0,0.00013219,2]
[424436948,1780893039000,-324.09326504,0.00013588,2]
[424436832,1780893039000,-500.0,0.00013151,2]
[424436834,1780893039000,-500.0,0.00013151,2]
[424436835,1780893039000,-500.0,0.00013151,2]
[424436839,1780893039000,-500.0,0.00013151,2]
[424436837,1780893039000,-500.0,0.00013151,2]
[424436830,1780893039000,-500.0,0.00013151,2]
[424436841,1780893039000,-500.0,0.00013151,2]
[424436845,1780893039000,-500.0,0.00013151,2]
[424436850,1780893039000,-500.0,0.00013151,2]
[424436847,1780893039000,-500.0,0.00013151,2]
[424436853,1780893039000,-500.0,0.00013151,2]
[424436852,1780893039000,-500.0,0.00013151,2]
[424436859,1780893039000,-500.0,0.00013151,2]
[424436861,1780893039000,-350.0,0.00013151,2]
[424436856,1780893039000,-500.0,0.00013151,2]
[424436857,1780893039000,-500.0,0.00013151,2]
[424436867,1780893039000,-157.94645028,0.00013151,2]
[424436869,1780893039000,-500.0,0.00013151,2]
[424436864,1780893039000,-500.0,0.00013151,2]
[424436865,1780893039000,-500.0,0.00013151,2]
[424436883,1780893039000,-9311.72333953,0.00013257,2]
[424436885,1780893039000,-32914.71102892,0.00013257,2]
[424436873,1780893039000,-19822.846827,0.00013152,2]
[424436891,1780893039000,-324.09326505,0.00013325,2]
[424436871,1780893039000,-232836.0135065,0.00013152,2]
[424436889,1780893039000,-437.53331682,0.00013325,2]
[424436887,1780893039000,-259.92,0.00013303,2]
[424436875,1780893039000,-151.3121716,0.00013152,2]
[424436877,1780893039000,-194547.0854002,0.00013152,2]
[424436947,1780893039000,-27129.77,0.00013562,2]
[424436976,1780893039000,-500.0,0.00013698,2]
[424436952,1780893039000,-500.0,0.00013629,2]
[424436981,1780893039000,-500.0,0.00013698,2]
[424436991,1780893039000,-500.0,0.00013698,2]
[424436982,1780893039000,-500.0,0.00013698,2]
[424436990,1780893039000,-500.0,0.00013698,2]
[424436992,1780893039000,-500.0,0.00013698,2]
[424436985,1780893039000,-512.99574311,0.00013698,2]
[424436980,1780893039000,-500.0,0.00013698,2]
[424436989,1780893039000,-526.36523084,0.00013698,2]
[424436983,1780893039000,-500.0,0.00013698,2]
[424436986,1780893039000,-152.46551428,0.00013698,2]
[424436984,1780893039000,-225.62301577,0.00013698,2]
[424436987,1780893039000,-522.20438407,0.00013698,2]
[424436988,1780893039000,-523.25020934,0.00013698,2]
[424436993,1780893039000,-500.0,0.00013698,2]
[424436999,1780893039000,-500.0,0.00013698,2]
[424436996,1780893039000,-500.0,0.00013698,2]
[424436997,1780893039000,-500.0,0.00013698,2]
[424437002,1780893039000,-500.0,0.00013698,2]
[424436994,1780893039000,-500.0,0.00013698,2]
[424437003,1780893039000,-500.0,0.00013698,2]
[424436995,1780893039000,-500.0,0.00013698,2]
[424437000,1780893039000,-500.0,0.00013698,2]
[424437001,1780893039000,-500.0,0.00013698,2]
[424437004,1780893039000,-500.0,0.00013698,2]
[424437005,1780893039000,-500.0,0.00013698,2]
[424436998,1780893039000,-500.0,0.00013698,2]
[424437007,1780893039000,-500.0,0.00013698,2]
[424437006,1780893039000,-500.0,0.00013698,2]
[424436944,1780893039000,-1825.0,0.00013488,5]
[424436978,1780893039000,-578.33888544,0.00013698,2]
[424436977,1780893039000,-500.0,0.00013698,2]
[424437008,1780893039000,-500.0,0.00013698,2]
[424436975,1780893039000,-500.0,0.00013698,2]
[424436945,1780893039000,-2000.0,0.00013499,2]
[424436941,1780893039000,-150.0,0.00013488,2]
[424436946,1780893039000,-10000.0,0.0001354,2]
[424436942,1780893039000,-150.0,0.00013488,2]
[424436953,1780893039000,-237280.7495408,0.0001363,2]
[424436949,1780893039000,-151.0,0.00013596,2]
[424436943,1780893039000,-1867.0,0.00013488,5]
[424436950,1780893039000,-151.0,0.00013596,2]
[424436974,1780893039000,-500.0,0.00013698,2]
[424436966,1780893039000,-151.0,0.00013657,2]
[424436954,1780893039000,-552.991,0.0001363,2]
[424436967,1780893039000,-9311.72333953,0.00013668,2]
[424436965,1780893039000,-150.0,0.00013654,2]
[424436960,1780893039000,-500.0,0.00013639,2]
[424436955,1780893039000,-151.0,0.00013637,2]
[424436964,1780893039000,-151.0,0.0001364,2]
[424436957,1780893039000,-500.0,0.00013639,2]
[424436973,1780893039000,-500.0,0.00013698,2]
[424436972,1780893039000,-500.0,0.00013698,2]
[424436979,1780893039000,-500.0,0.00013698,2]
[424436971,1780893039000,-500.0,0.00013698,2]
[424436970,1780893039000,-500.0,0.00013698,2]
[424436969,1780893039000,-151.0,0.00013698,2]
[424436963,1780893039000,-500.0,0.00013639,2]
[424436958,1780893039000,-500.0,0.00013639,2]
[424436959,1780893039000,-500.0,0.00013639,2]
[424436961,1780893039000,-500.0,0.00013639,2]
[424436962,1780893039000,-500.0,0.00013639,2]
[424436956,1780893039000,-151.0,0.00013637,2]
[424436968,1780893039000,-32914.71102892,0.00013668,2]
[424437053,1780893040000,-500.0,0.00013904,2]
[424437051,1780893040000,-200.0,0.00013904,2]
[424437050,1780893040000,-150.0,0.00013904,2]
[424437055,1780893040000,-150.0,0.00013904,2]
[424437049,1780893040000,-150.0,0.00013904,2]
[424437045,1780893040000,-500.0,0.00013904,2]
[424437047,1780893040000,-500.0,0.00013904,2]
[424437048,1780893040000,-501.87117652,0.00013904,2]
[424437044,1780893040000,-230.9383663,0.00013904,2]
[424437043,1780893040000,-500.0,0.00013904,2]
[424437037,1780893040000,-500.0,0.00013904,2]
[424437052,1780893040000,-213.23313711,0.00013904,2]
[424437046,1780893040000,-505.49510151,0.00013904,2]
[424437070,1780893040000,-150.0,0.00013904,2]
[424437056,1780893040000,-500.0,0.00013904,2]
[424437058,1780893040000,-500.0,0.00013904,2]
[424437057,1780893040000,-150.0,0.00013904,2]
[424437064,1780893040000,-500.0,0.00013904,2]
[424437065,1780893040000,-250.0,0.00013904,2]
[424437061,1780893040000,-150.0,0.00013904,2]
[424437063,1780893040000,-150.0,0.00013904,2]
[424437067,1780893040000,-150.0,0.00013904,2]
[424437059,1780893040000,-150.0,0.00013904,2]
[424437062,1780893040000,-500.0,0.00013904,2]
[424437060,1780893040000,-500.0,0.00013904,2]
[424437066,1780893040000,-398.2605879,0.00013904,2]
[424437068,1780893040000,-150.0,0.00013904,2]
[424437036,1780893040000,-500.0,0.00013904,2]
[424437054,1780893040000,-500.0,0.00013904,2]
[424437040,1780893040000,-500.0,0.00013904,2]
[424437023,1780893040000,-150.0,0.00013862,2]
[424437035,1780893040000,-500.0,0.00013904,2]
[424437069,1780893040000,-169.62509259,0.00013904,2]
[424437015,1780893040000,-500.0,0.00013699,2]
[424437009,1780893040000,-500.0,0.00013698,2]
[424437018,1780893040000,-151.0,0.00013807,2]
[424437016,1780893040000,-453.0048582,0.00013699,2]
[424437017,1780893040000,-1200.0,0.000138,5]
[424437014,1780893040000,-500.0,0.00013699,2]
[424437013,1780893040000,-200.0,0.00013699,2]
[424437010,1780893040000,-500.0,0.00013698,2]
[424437011,1780893040000,-500.0,0.00013698,2]
[424437019,1780893040000,-150.0,0.00013821,2]
[424437029,1780893040000,-311.0,0.000139,2]
[424437030,1780893040000,-500.0,0.00013904,2]
[424437038,1780893040000,-500.0,0.00013904,2]
[424437020,1780893040000,-597.87,0.00013823,2]
[424437022,1780893040000,-324.09326504,0.0001385,2]
[424437028,1780893040000,-1600.0,0.000139,5]
[424437024,1780893040000,-9311.72333953,0.00013873,2]
[424437025,1780893040000,-32914.71102892,0.00013873,2]
[424437026,1780893040000,-316.0,0.000139,2]
[424437027,1780893040000,-645.0,0.000139,2]
[424437031,1780893040000,-500.0,0.00013904,2]
[424437032,1780893040000,-500.0,0.00013904,2]
[424437033,1780893040000,-500.0,0.00013904,2]
[424437041,1780893040000,-500.0,0.00013904,2]
[424437039,1780893040000,-500.0,0.00013904,2]
[424437034,1780893040000,-500.0,0.00013904,2]
[424437042,1780893040000,-500.0,0.00013904,2]
[424437021,1780893040000,-166.66,0.00013836,2]
[424437073,1780893040000,-150.0,0.00013904,2]
[424437012,1780893040000,-166.66,0.00013699,2]
[424437071,1780893040000,-150.0,0.00013904,2]
[424437107,1780893040000,-9311.72333953,0.00014079,2]
[424437109,1780893040000,-261.26,0.000141,2]
[424437113,1780893040000,-150.0,0.00014154,2]
[424437111,1780893040000,-437.53331681,0.00014113,2]
[424437110,1780893040000,-166.66,0.0001411,2]
[424437108,1780893040000,-32914.71102892,0.00014079,2]
[424437114,1780893040000,-175.162966,0.000142,2]
[424437115,1780893040000,-150.0,0.00014237,2]
[424437112,1780893040000,-324.09326504,0.00014113,2]
[424437119,1780893040000,-32914.71102892,0.00014284,2]
[424437117,1780893040000,-166.66,0.00014272,2]
[424437116,1780893040000,-166.66,0.00014247,2]
[424437118,1780893040000,-9311.72333953,0.00014284,2]
[424437098,1780893040000,-2555.71842136,0.00013976,2]
[424437121,1780893040000,-350.0,0.00014335,2]
[424437132,1780893040000,-628.29,0.00014497,2]
[424437130,1780893040000,-9311.72333953,0.00014489,2]
[424437127,1780893040000,-934.141,0.00014447,2]
[424437122,1780893040000,-500.0,0.00014365,2]
[424437125,1780893040000,-350.0,0.00014397,2]
[424437123,1780893040000,-324.09326504,0.00014375,2]
[424437134,1780893040000,-14489.99,0.0001458,2]
[424437126,1780893040000,-350.0,0.00014419,2]
[424437128,1780893040000,-184.636,0.00014447,2]
[424437133,1780893040000,-1329.79,0.00014497,2]
[424437124,1780893040000,-166.66,0.00014384,2]
[424437129,1780893040000,-150.0,0.00014487,2]
[424437072,1780893040000,-150.0,0.00013904,2]
[424437131,1780893040000,-32914.71102892,0.00014489,2]
[424437102,1780893040000,-2329.0,0.00014,2]
[424437120,1780893040000,-150.0,0.0001432,2]
[424437099,1780893040000,-234.67563736,0.00013976,2]
[424437096,1780893040000,-166.66,0.00013973,2]
[424437074,1780893040000,-150.0,0.00013904,2]
[424437075,1780893040000,-500.0,0.00013904,2]
[424437076,1780893040000,-250.0,0.00013904,2]
[424437077,1780893040000,-500.0,0.00013904,2]
[424437079,1780893040000,-500.0,0.00013904,2]
[424437081,1780893040000,-500.0,0.00013904,2]
[424437080,1780893040000,-500.0,0.00013904,2]
[424437083,1780893040000,-460.0,0.00013904,2]
[424437084,1780893040000,-150.0,0.00013904,2]
[424437082,1780893040000,-500.0,0.00013904,2]
[424437085,1780893040000,-150.0,0.00013904,2]
[424437086,1780893040000,-236.89809248,0.00013904,2]
[424437088,1780893040000,-150.0,0.00013904,2]
[424437078,1780893040000,-500.0,0.00013904,2]
[424437089,1780893040000,-150.0,0.00013904,2]
[424437101,1780893040000,-2324.80038927,0.00014,2]
[424437090,1780893040000,-150.0,0.00013904,2]
[424437100,1780893040000,-150.0,0.00013987,2]
[424437103,1780893040000,-250.0,0.00014,2]
[424437094,1780893040000,-500.0,0.00013904,2]
[424437106,1780893040000,-2058.0,0.00014055,5]
[424437105,1780893040000,-255.0,0.00014052,2]
[424437097,1780893040000,-180.60942112,0.00013976,2]
[424437095,1780893040000,-500.0,0.00013904,2]
[424437092,1780893040000,-250.0,0.00013904,2]
[424437093,1780893040000,-500.0,0.00013904,2]
[424437087,1780893040000,-150.0,0.00013904,2]
[424437091,1780893040000,-150.0,0.00013904,2]
[424437104,1780893040000,-500.0,0.0001401,2]
[424437154,1780893041000,-324.09326504,0.000149,2]
[424437161,1780893041000,-150.0,0.00014939,2]
[424437166,1780893041000,-168.49878071,0.00014986,2]
[424437162,1780893041000,-250.35241809,0.00014965,2]
[424437163,1780893041000,-153.84603978,0.00014986,2]
[424437170,1780893041000,-151.0,0.00014997,2]
[424437171,1780893041000,-151.0,0.00014997,2]
[424437174,1780893041000,-500.0,0.00014999,2]
[424437167,1780893041000,-500.0,0.00014988,2]
[424437173,1780893041000,-250.0,0.00014999,2]
[424437176,1780893041000,-500.0,0.00014999,2]
[424437172,1780893041000,-151.0,0.00014997,2]
[424437164,1780893041000,-249.2248925,0.00014986,2]
[424437165,1780893041000,-155.20463969,0.00014986,2]
[424437168,1780893041000,-120979.18828967,0.00014989,2]
[424437186,1780893041000,-500.0,0.00014999,2]
[424437188,1780893041000,-409.5129335,0.00014999,2]
[424437187,1780893041000,-500.0,0.00014999,2]
[424437150,1780893041000,-170.07468546,0.00014891,2]
[424437175,1780893041000,-500.0,0.00014999,2]
[424437169,1780893041000,-735.54509119,0.0001499,2]
[424437156,1780893041000,-2555.71842136,0.000149,2]
[424437142,1780893041000,-32914.71102892,0.00014695,2]
[424437155,1780893041000,-32914.71102892,0.000149,2]
[424437183,1780893041000,-551.97576766,0.00014999,2]
[424437137,1780893041000,-300.0,0.000146,5]
[424437138,1780893041000,-150.0,0.00014612,2]
[424437136,1780893041000,-297.89,0.0001458,2]
[424437139,1780893041000,-324.09326504,0.00014638,2]
[424437135,1780893041000,-12940.2,0.0001458,2]
[424437140,1780893041000,-150.0,0.00014653,2]
[424437141,1780893041000,-9311.72333953,0.00014695,2]
[424437143,1780893041000,-300.0,0.000147,5]
[424437146,1780893041000,-166.66,0.00014743,2]
[424437144,1780893041000,-350.0,0.00014738,2]
[424437147,1780893041000,-300.0,0.000148,5]
[424437145,1780893041000,-500.0,0.0001474,2]
[424437160,1780893041000,-161.49601252,0.00014939,2]
[424437151,1780893041000,-437.53331681,0.000149,2]
[424437149,1780893041000,-151.0,0.00014847,2]
[424437152,1780893041000,-9311.72333953,0.000149,2]
[424437157,1780893041000,-234.67563736,0.000149,2]
[424437159,1780893041000,-172.99202504,0.00014939,2]
[424437148,1780893041000,-150.0,0.0001482,2]
[424437158,1780893041000,-180.60942112,0.000149,2]
[424437153,1780893041000,-300.0,0.000149,5]
[424437181,1780893041000,-500.0,0.00014999,2]
[424437208,1780893041000,-1275.0,0.00015,2]
[424437178,1780893041000,-500.0,0.00014999,2]
[424437215,1780893041000,-151.0,0.00015,2]
[424437213,1780893041000,-807.3,0.00015,2]
[424437209,1780893041000,-765.0,0.00015,2]
[424437207,1780893041000,-1060.0,0.00015,2]
[424437214,1780893041000,-151.0,0.00015,2]
[424437212,1780893041000,-1345.49,0.00015,2]
[424437217,1780893041000,-6925150.34771704,0.00015,2]
[424437216,1780893041000,-151.0,0.00015,2]
[424437223,1780893041000,-5630.45551319,0.00015,2]
[424437184,1780893041000,-2000.0,0.00014999,2]
[424437222,1780893041000,-4463.1132009,0.00015,2]
[424437218,1780893041000,-807.91327417,0.00015,2]
[424437219,1780893041000,-796.55986639,0.00015,2]
[424437220,1780893041000,-932.10264588,0.00015,2]
[424437221,1780893041000,-500.0,0.00013698,2]
[424437226,1780893041000,-775.32092544,0.00015,2]
[424437230,1780893041000,-5400.0,0.00015,2]
[424437227,1780893041000,-339.88265974,0.00015,2]
[424437225,1780893041000,-9561.50740717,0.00015,2]
[424437229,1780893041000,-23905.4410609,0.00015,2]
[424437224,1780893041000,-2439.21906532,0.00015,2]
[424437210,1780893041000,-2000.0,0.00015,2]
[424437211,1780893041000,-1229.18,0.00015,2]
[424437190,1780893041000,-666.0,0.00014999,2]
[424437177,1780893041000,-500.0,0.00014999,2]
[424437185,1780893041000,-500.0,0.00014999,2]
[424437182,1780893041000,-500.0,0.00014999,2]
[424437189,1780893041000,-300.0,0.00014999,2]
[424437191,1780893041000,-300.0,0.00014999,2]
[424437194,1780893041000,-351.81334123,0.00015,2]
[424437192,1780893041000,-666.0,0.00014999,2]
[424437193,1780893041000,-3159046.86984547,0.00015,2]
[424437206,1780893041000,-2000.0,0.00015,2]
[424437180,1780893041000,-500.0,0.00014999,2]
[424437195,1780893041000,-7908.30541692,0.00015,2]
[424437200,1780893041000,-1392.12,0.00015,2]
[424437197,1780893041000,-1004.26684243,0.00015,2]
[424437198,1780893041000,-2000.0,0.00015,2]
[424437201,1780893041000,-835.27,0.00015,2]
[424437199,1780893041000,-1341.09,0.00015,2]
[424437202,1780893041000,-1273.22,0.00015,2]
[424437204,1780893041000,-317.87,0.00015,2]
[424437205,1780893041000,-190.73,0.00015,2]
[424437203,1780893041000,-762.89,0.00015,2]
[424437196,1780893041000,-6390.93212886,0.00015,2]
[424437179,1780893041000,-500.0,0.00014999,2]
[424437234,1780893042000,-261.49658173,0.00013698,2]
[424437236,1780893042000,-136.73088237,0.00015,2]
[424437233,1780893042000,-238.50341827,0.00013698,2]
[424437231,1780893042000,4460.4,0.00030137,120]
[424437232,1780893042000,-500.0,0.00013698,2]
[424437235,1780893042000,-626.7966461,0.00013698,2]
[424437240,1780893042000,-136754.20511951,0.00015,2]
[424437242,1780893042000,-15802.58395072,0.00015,2]
[424437239,1780893042000,-151.0,0.00013904,2]
[424437238,1780893042000,-4511.48827188,0.00015,2]
[424437245,1780893042000,500.0,0.00030137,120]
[424437241,1780893042000,-43729.0654767,0.00015,2]
[424437243,1780893042000,-13902.62744498,0.00015,2]
[424437244,1780893042000,-475.80353924,0.00015,2]
[424437237,1780893042000,-35370.32145251,0.00015,2]
[424437248,1780893043000,-207.59,0.00014533,2]
[424437250,1780893043000,-2150.79801363,0.00015,2]
[424437249,1780893043000,-522.78801308,0.00015,2]
[424437251,1780893043000,-626.63294552,0.00015,2]
[424437252,1780893043000,-9426.96599057,0.00015,2]
[424437256,1780893043000,-500.0,0.00015,2]
[424437254,1780893043000,-341.04,0.00015,2]
[424437255,1780893043000,-6877.85982336,0.00015,2]
[424437253,1780893043000,-6172.35656158,0.00015,2]
[424437258,1780893046000,-1110.9295,0.00015,2]
[424437257,1780893046000,-501.0,0.00015,2]
[424437259,1780893046000,-1151.30067516,0.00015,2]
[424437260,1780893046000,-2002.90299293,0.00015,2]
[424437262,1780893046000,-77828.00925911,0.00015,2]
[424437261,1780893046000,-4589.36802758,0.00015,2]
[424437263,1780893046000,-11140.03919479,0.00015,2]
[424437265,1780893046000,-19579.25548105,0.00015,2]
[424437266,1780893046000,-64845.7125,0.00015,2]
[424437264,1780893046000,-31426.91282622,0.00015,2]
[424437270,1780893047000,500.0,0.00030137,120]
[424437271,1780893052000,500.0,0.00030137,120]
[424437272,1780893057000,500.0,0.00030137,120]
[424437273,1780893062000,500.0,0.00030137,120]
[424437275,1780893066000,500.0,0.00030137,120]
[424437276,1780893105000,1000.0,0.00029452,120]
[424437308,1780893865000,517.22,0.00030137,120]
[424437310,1780893997000,3384.4747537,0.00030136,120]
[424437343,1780894231000,-207.59,0.00012137,2]
[424437338,1780894231000,-151.0,0.00012,2]
[424437339,1780894231000,-151.0,0.00012,2]